fUSD/lending_fUSD_20240608
["ID","MTS","AMOUNT","RATE_DAILY","PERIOD"]
[328835557,1717858245552,-150.0,0.00029673,2]
[328835559,1717858245562,-150.0,0.00029673,2]
[328835561,1717858245572,-164.14,0.00029673,2]
[328835563,1717858245582,-351.02,0.00029673,2]
[328835565,1717858245592,-164.14,0.00029673,2]
[328835567,1717858245603,-163.39,0.00029673,2]
[328835569,1717858245613,-151.00335646,0.00029684,2]
[328835571,1717858245622,-160.0,0.000297,2]
[328835573,1717858245632,-4000.0,0.000297,2]
[328835575,1717858245642,-4000.0,0.000297,2]
[328835577,1717858245651,-4000.0,0.000297,2]
[328835579,1717858245661,-2000.0,0.000297,30]
[328835581,1717858245670,-192.13560777,0.000297,2]
[328835583,1717858245680,-500.0,0.000297,3]
[328835585,1717858245690,-150.0,0.000297,2]
[328835587,1717858245701,-1546.34161842,0.000297,15]
[328835589,1717858245711,-200.0,0.000297,10]
[328835591,1717858245721,-204.48397635,0.000297,2]
[328835593,1717858245732,-174.47135579,0.000297,2]
[328835595,1717858245743,-156.22701192,0.000297,7]
[328835596,1717858245755,-156.22701192,0.000297,7]
[328835598,1717858245765,-156.22701192,0.000297,7]
[328835600,1717858245775,-156.22701192,0.000297,7]
[328835602,1717858245787,-156.72,0.000297,7]
[328835604,1717858245797,-156.30201192,0.000297,7]
[328835606,1717858245807,-156.30201192,0.000297,7]
[328835608,1717858245817,-156.30201192,0.000297,7]
[328835610,1717858245828,-156.30201192,0.000297,7]
[328835612,1717858245839,-156.30201192,0.000297,7]
[328835614,1717858245848,-156.30201192,0.000297,7]
[328835616,1717858245858,-156.30201192,0.000297,7]
[328835618,1717858245868,-156.30201192,0.000297,7]
[328835620,1717858245878,-156.30201192,0.000297,7]
[328835622,1717858245888,-156.30201192,0.000297,7]
[328835624,1717858245898,-156.30201192,0.000297,7]
[328835626,1717858245908,-156.30201192,0.000297,7]
[328835628,1717858245918,-156.30201192,0.000297,7]
[328835630,1717858245929,-156.30201192,0.000297,7]
[328835632,1717858245939,-156.30201192,0.000297,7]
[328835634,1717858245949,-156.30201192,0.000297,7]
[328835636,1717858245959,-156.30201192,0.000297,7]
[328835638,1717858245968,-156.30201192,0.000297,7]
[328835640,1717858245978,-156.30201192,0.000297,7]
[328835642,1717858245988,-168.42763086,0.000297,7]
[328835644,1717858245997,-168.42763086,0.000297,7]
[328835646,1717858246006,-168.42763086,0.000297,7]
[328835648,1717858246016,-168.92,0.000297,7]
[328835650,1717858246026,-158.60835846,0.000297,7]
[328835652,1717858246035,-158.60835846,0.000297,7]
[328835653,1717858246045,-158.60835846,0.000297,7]
[328835655,1717858246055,-158.60835846,0.000297,7]
[328835657,1717858246065,-158.60835846,0.000297,7]
[328835659,1717858246075,-158.60835846,0.000297,7]
[328835661,1717858246085,-158.60835846,0.000297,7]
[328835663,1717858246096,-158.60835846,0.000297,7]
[328835665,1717858246106,-158.60835846,0.000297,7]
[328835667,1717858246116,-158.60835846,0.000297,7]
[328835669,1717858246126,-158.60835846,0.000297,7]
[328835671,1717858246136,-158.60835846,0.000297,7]
[328835673,1717858246145,-158.60835846,0.000297,7]
[328835675,1717858246155,-158.60835846,0.000297,7]
[328835677,1717858246165,-158.60835846,0.000297,7]
[328835679,1717858246175,-158.60835846,0.000297,7]
[328835681,1717858246184,-181.73640807,0.000297,7]
[328835683,1717858246194,-182.23,0.000297,7]
[328835685,1717858246203,-161.71014051,0.000297,7]
[328835687,1717858246213,-161.71014051,0.000297,7]
[328835689,1717858246223,-161.71014051,0.000297,7]
[328835691,1717858246233,-161.71014051,0.000297,7]
[328835693,1717858246243,-161.71014051,0.000297,7]
[328835695,1717858246253,-161.71014051,0.000297,7]
[328835697,1717858246264,-161.71014051,0.000297,7]
[328835699,1717858246273,-161.71014051,0.000297,7]
[328835701,1717858246284,-953.09528274,0.000297,2]
[328835703,1717858246294,-7947.4801374,0.00029717,2]
[328835705,1717858246303,-1881.25,0.00029756,2]
[328835707,1717858246313,-416.929,0.00029759,2]
[328835709,1717858246323,-2100.0,0.00029759,2]
[328835711,1717858246333,-790.0,0.0002976,10]
[328835713,1717858246343,-250.0,0.0002976,15]
[328835715,1717858246353,-1046.0,0.0002976,15]
[328835717,1717858246363,-150.5,0.0002976,15]
[328835719,1717858246373,-174.0,0.0002976,15]
[328835721,1717858246383,-7947.4801374,0.00029763,2]
[328835723,1717858246393,-250.0,0.0002977,15]
[328835725,1717858246403,-1046.0,0.0002977,15]
[328835727,1717858246413,-174.0,0.0002977,15]
[328835729,1717858246424,-250.0,0.0002977,15]
[328835731,1717858246433,-1046.0,0.0002977,15]
[328835733,1717858246443,-150.5,0.0002977,15]
[328835735,1717858246453,-174.0,0.0002977,15]
[328835737,1717858246463,-250.0,0.0002978,15]
[328835739,1717858246474,-1046.0,0.0002978,15]
[328835741,1717858246486,-250.0,0.0002978,15]
[328835743,1717858246495,-1046.0,0.0002978,15]
[328835745,1717858246505,-174.0,0.0002978,15]
[328835747,1717858246515,-174.0,0.0002978,15]
[328835749,1717858246525,-1046.0,0.0002978,15]
[328835751,1717858246536,-250.0,0.0002978,15]
[328835753,1717858246546,-150.5,0.0002978,15]
[328835755,1717858246556,-174.0,0.0002978,15]
[328835757,1717858246567,-165.24095706,0.00029788,2]
[328835759,1717858246578,-160.54086438,0.00029788,2]
[328835761,1717858246588,-155.0,0.00029788,2]
[328835764,1717858246598,-213.88980395,0.00029788,2]
[328835767,1717858246609,-264.4340714,0.00029788,2]
[328835770,1717858246619,-320.14584657,0.00029788,2]
[328835773,1717858246629,-53006.27321904,0.00029789,8]
[328835776,1717858246639,-250.0,0.0002979,15]
[328835779,1717858246649,-1046.0,0.0002979,15]
[328835782,1717858246659,-160.5,0.0002979,15]
[328835785,1717858246670,-250.0,0.0002979,15]
[328835788,1717858246680,-1046.0,0.0002979,15]
[328835791,1717858246690,-174.0,0.0002979,15]
[328835794,1717858246700,-174.0,0.0002979,15]
[328835797,1717858246710,-996743.85998813,0.0002979,5]
[328835800,1717858246720,-153.22074,0.0002979,7]
[328835802,1717858246731,-153.22074,0.0002979,7]
[328835805,1717858246741,-151.0,0.0002979,7]
[328835808,1717858246752,-151.0,0.0002979,7]
[328835811,1717858246764,-227.036888,0.0002979,7]
[328835814,1717858246774,-151.0,0.0002979,7]
[328835817,1717858246784,-282.40366,0.0002979,7]
[328835819,1717858246795,-151.0,0.0002979,7]
[328835821,1717858246804,-502.936493,0.0002979,7]
[328835823,1717858246814,-157.060817,0.00029798,18]
[328835826,1717858246823,-155.0,0.00029798,2]
[328835829,1717858246835,-1479.16396653,0.00029798,2]
[328835832,1717858246847,-1400.60780106,0.00029798,2]
[328835835,1717858246857,-321.83343734,0.00029798,2]
[328835838,1717858246867,-155.71614936,0.00029798,2]
[328835841,1717858246878,-172.49371788,0.00029798,2]
[328835843,1717858246888,-300.14317843,0.00029798,2]
[328835846,1717858246899,-6253.29174589,0.00029798,2]
[328835849,1717858246909,-1134.57912358,0.00029798,2]
[328835851,1717858246919,-256.59095034,0.00029798,2]
[328835853,1717858246930,-250.10646785,0.00029798,2]
[328835855,1717858246940,-634.94381214,0.00029798,2]
[328835857,1717858246950,-411.24369396,0.00029798,2]
[328835859,1717858246961,-155.0,0.00029798,2]
[328835861,1717858246971,-162.52861424,0.00029798,2]
[328835863,1717858246983,-224.94452493,0.00029798,2]
[328835865,1717858246992,-217.1710123,0.00029798,2]
[328835867,1717858247002,-157.38545978,0.00029798,2]
[328835869,1717858247012,-1482.98922185,0.00029798,3]
[328835871,1717858247023,-176.41950673,0.00029798,2]
[328835873,1717858247033,-2292.14061527,0.00029798,2]
[328835875,1717858247044,-179.89516541,0.00029798,2]
[328835877,1717858247054,-529.82691404,0.00029798,2]
[328835879,1717858247065,-784.58742627,0.00029798,2]
[328835882,1717858247077,-407.24197213,0.00029798,2]
[328835884,1717858247088,-166.72253563,0.00029798,2]
[328835886,1717858247098,-3565.22156148,0.00029798,2]
[328835888,1717858247108,-155.0,0.00029798,2]
[328835890,1717858247118,-156.54933123,0.00029798,2]
[328835892,1717858247128,-250.05519525,0.00029798,2]
[328835894,1717858247138,-156.47913975,0.00029798,2]
[328835896,1717858247148,-208.9116436,0.00029798,2]
[328835898,1717858247160,-248.92686412,0.00029798,2]
[328835900,1717858247170,-178.21194135,0.00029798,2]
[328835902,1717858247179,-155.17031669,0.00029798,2]
[328835904,1717858247189,-235.97802269,0.00029798,2]
[328835906,1717858247198,-241.59005071,0.00029798,2]
[328835908,1717858247207,-155.0,0.00029798,2]
[328835910,1717858247217,-155.0,0.00029798,2]
[328835912,1717858247227,-170.69238991,0.00029798,2]
[328835914,1717858247238,-155.77149713,0.00029798,2]
[328835916,1717858247247,-156.85861452,0.00029798,2]
[328835918,1717858247257,-179.80817091,0.00029798,2]
[328835920,1717858247268,-306.53561288,0.00029798,2]
[328835921,1717858247278,-156.45668317,0.00029798,2]
[328835922,1717858247288,-155.41908413,0.00029798,2]
[328835924,1717858247297,-411.04983464,0.00029798,2]
[328835926,1717858247308,-155.78676667,0.00029798,2]
[328835928,1717858247318,-370.9285916,0.00029798,2]
[328835930,1717858247328,-2812.90167299,0.00029798,2]
[328835932,1717858247338,-209.74109427,0.00029798,2]
[328835934,1717858247348,-160.26537688,0.00029798,2]
[328835936,1717858247357,-208.34302745,0.00029798,2]
[328835938,1717858247368,-267.4481888,0.00029798,2]
[328835940,1717858247377,-1065.03787148,0.00029798,2]
[328835942,1717858247387,-359.43451956,0.00029798,2]
[328835944,1717858247397,-1218.13589043,0.00029798,2]
[328835946,1717858247407,-2261.04961401,0.00029798,7]
[328835963,1717858247566,-172.13878346,0.00029798,2]
[328835964,1717858247577,-544.8562112,0.00029798,2]
[328835965,1717858247587,-1531.67403765,0.00029798,2]
[328835966,1717858247597,-480.88976442,0.00029798,2]
[328835967,1717858247607,-1230.68671206,0.00029798,2]
[328835968,1717858247617,-790.98303269,0.00029798,2]
[328835969,1717858247627,-3882.38993695,0.00029798,2]
[328835970,1717858247637,-155.0,0.00029798,2]
[328835971,1717858247646,-306.51547453,0.00029798,2]
[328835972,1717858247656,-155.35331114,0.00029798,2]
[328835973,1717858247666,-446.80079403,0.00029798,2]
[328835974,1717858247676,-3777.08271889,0.000298,5]
[328835975,1717858247686,-4000.0,0.000298,2]
[328835976,1717858247696,-1037474.85934805,0.000298,5]
[328835977,1717858247713,-1229.69159329,0.000298,5]
[328835978,1717858247724,-1134.31999994,0.000298,5]
[328835979,1717858247736,-912.45,0.000298,5]
[328835980,1717858247751,-108268.35959537,0.000298,5]
[328835981,1717858247789,2552.42616078,9.58e-05,2]
[328835982,1717858248072,-502.936493,0.00029498,7]
[328835983,1717858248083,-647.76176853,0.00029498,2]
[328835984,1717858248093,-212.19071108,0.00029498,7]
[328835985,1717858248103,-502.936493,0.00029499,7]
[328835986,1717858248113,-502.936493,0.000295,7]
[328835987,1717858248123,-502.936493,0.000296,7]
[328835988,1717858248134,-1201.07377305,0.000297,2]
[328835989,1717858248144,-502.936493,0.0002979,7]
[328835990,1717858248155,-3242.92302758,0.000298,5]
[328835991,1717858248311,-726.9610497,0.000298,5]
[328835992,1717858248325,-5530.06801467,0.000298,5]
[328835993,1717858248339,-1396.76750727,0.000298,5]
[328835994,1717858248352,-923.64272275,0.000298,5]
[328835995,1717858248364,-818.90005,0.000298,5]
[328835996,1717858248376,-429.4823871,0.000298,5]
[328835997,1717858248388,-1284.1755862,0.000298,5]
[328835998,1717858248401,-689.86294699,0.000298,5]
[328835999,1717858248413,-1500.26,0.000298,5]
[328836000,1717858248425,-691.03903521,0.000298,5]
[328836001,1717858248437,-477.62600341,0.000298,5]
[328836002,1717858248449,-462.1772013,0.000298,5]
[328836003,1717858248461,-307.44854805,0.000298,5]
[328836004,1717858248473,-544.91435594,0.000298,5]
[328836005,1717858248486,-453.46218221,0.000298,5]
[328836006,1717858248498,-485.64628292,0.000298,5]
[328836007,1717858248544,-208.87102398,0.00029497,2]
[328836008,1717858248555,-2092.1190711,0.00029498,2]
[328836009,1717858248565,-555.17024129,0.00029588,2]
[328836010,1717858248575,-15888.87061637,0.000298,5]
[328836011,1717858248588,-8338.31609897,0.000298,5]
[328836012,1717858248600,-801.2480105,0.000298,5]
[328836013,1717858248612,-1753.85498398,0.000298,5]
[328836014,1717858248624,-16830.86465427,0.000298,5]
[328836015,1717858248635,-41357.36563242,0.000298,5]
[328836016,1717858248648,-725411.28603847,0.000298,5]
[328836017,1717858248660,-31386.1352046,0.000298,5]
[328836018,1717858248672,-3308.66806079,0.000298,5]
[328836019,1717858248685,-404.48230813,0.000298,5]
[328836020,1717858248698,-1603.20601043,0.000298,5]
[328836021,1717858248711,-1649.06040475,0.000298,5]
[328836022,1717858248723,-534.16021158,0.000298,5]
[328836027,1717858892171,-10920.07778147,0.00013348,2]
[328836028,1717858892195,-359.49433643,0.00013448,2]
[328836029,1717858892219,-359.49433642,0.00013449,2]
[328836030,1717858892242,-359.49433642,0.00013449,2]
[328836031,1717858892265,-150.0,0.00013548,2]
[328836032,1717858892291,-150.0,0.00013548,2]
[328836033,1717858892316,-3134.6279,0.000139,2]
[328836034,1717858892342,-3073.4155,0.000139,2]
[328836036,1717858968379,326493.00272463,0.000139,2]
[328836037,1717858981261,19774.65511707,0.000139,2]
[328836038,1717858997272,19758.64216544,0.000139,2]
[328836039,1717859033986,10042.88618025,0.00025,30]
[328836041,1717859145133,-155.0,0.00014999,2]
[328836042,1717859145155,-800.0,0.00015,2]
[328836043,1717859145178,-200.48094341,0.0001726,2]
[328836062,1717859432998,-300.0,0.0001716,2]
[328836063,1717859433010,-299.50905659,0.0001726,2]
[328836064,1717859433019,-150.0,0.000182,2]
[328836065,1717859433030,-150.0,0.000182,2]
[328836066,1717859433040,-3654.779,0.00018201,2]
[328836067,1717859433049,-3684.282,0.00018266,2]
[328836068,1717859433060,-3692.155,0.00018337,2]
[328836070,1717859433069,-3680.133,0.00018414,2]
[328836072,1717859433079,-3659.195,0.00018498,2]
[328836074,1717859433089,-3675.444,0.00018588,2]
[328836076,1717859433099,-2025.0,0.000186,2]
[328836078,1717859433109,-707.0,0.000186,2]
[328836080,1717859433119,-3639.629,0.00018668,2]
[328836082,1717859433128,-3622.215,0.0001882,2]
[328836083,1717859433143,-1796.56088462,0.00019101,2]
[328836084,1717859433449,-1878.58511538,0.00019101,2]
[328836085,1717859433459,-210.0,0.0002002,2]
[328836086,1717859433470,-226.64653432,0.000201,2]
[328836087,1717859433479,-615.0,0.00021548,2]
[328836088,1717859433489,-1184.71327741,0.00021548,2]
[328836089,1717859433501,-316.81470468,0.00021548,2]
[328836090,1717859433512,-328.47201791,0.00021548,2]
[328836091,1717859433522,-671.578,0.00021548,2]
[328836092,1717859433532,-162.84,0.00021794,2]
[328836093,1717859433542,-216.91144525,0.00023,2]
[328836094,1717859433551,-177.09,0.00024384,2]
[328836095,1717859433561,-341.79,0.00024384,2]
[328836096,1717859433571,-209.0,0.0002448,2]
[328836097,1717859433581,-155.0,0.00024595,2]
[328836098,1717859433591,-186.98597066,0.00024596,2]
[328836099,1717859433603,-172.61402934,0.00024596,2]
[328836100,1717859433613,-1250.0,0.00025,2]
[328836101,1717859433623,-258.0384721,0.00025,2]
[328836102,1717859433634,-706.32929204,0.00025,2]
[328836103,1717859433644,-209.0,0.0002551,2]
[328836104,1717859433654,-189.79,0.00026361,2]
[328836105,1717859433663,-250.0,0.0002645,2]
[328836106,1717859433673,-209.0,0.0002655,2]
[328836107,1717859433683,-964.6,0.00026576,2]
[328836108,1717859433693,-155.38771572,0.00026818,2]
[328836109,1717859433703,-155.1912628,0.00026818,2]
[328836110,1717859433714,-359.6,0.0002686,2]
[328836111,1717859433724,-150.0,0.00026912,11]
[328836112,1717859433734,-1300.0,0.00027,2]
[328836113,1717859433744,-155.13502181,0.00027042,2]
[328836114,1717859433754,-250.0,0.000272,2]
[328836115,1717859433764,-250.0,0.00027221,2]
[328836116,1717859433774,-160.07290368,0.00027301,2]
[328836117,1717859433784,-5084.07029818,0.00027374,2]
[328836118,1717859433796,-2790.34058908,0.00027374,2]
[328836119,1717859433808,-10957.95669485,0.00027374,2]
[328836153,1717859439321,-0.0072565,0.00027374,2]
[328836154,1717859439333,-5067.62516139,0.00027374,2]
[328836155,1717859439342,-209.0,0.0002758,2]
[328836156,1717859439352,-1000.0,0.00027582,2]
[328836157,1717859439362,-152.33722729,0.00027694,2]
[328836158,1717859439371,-669.61476,0.00027783,2]
[328836159,1717859439381,-1649.561551,0.00027783,2]
[328836160,1717859439391,-3265.694796,0.00027783,2]
[328836161,1717859439402,-200.0,0.00028,14]
[328836162,1717859439412,-669.61476,0.0002813,2]
[328836163,1717859439422,-1649.561551,0.0002813,2]
[328836164,1717859439435,-860.00110031,0.0002813,2]
[328836165,1717859439448,-2405.69369569,0.0002813,2]
[328836166,1717859439457,-669.61476,0.00028477,2]
[328836167,1717859439467,-1649.561551,0.00028477,2]
[328836168,1717859439477,-3265.694796,0.00028477,2]
[328836169,1717859439487,-10670.43519731,0.00028606,2]
[328836170,1717859439499,-13565.0,0.00028606,2]
[328836171,1717859439511,-5597.82546674,0.00028606,2]
[328836172,1717859439521,-209.0,0.0002862,2]
[328836173,1717859439531,-160.07290368,0.00028742,2]
[328836174,1717859439541,-669.61476,0.00028825,2]
[328836175,1717859439551,-1649.561551,0.00028825,2]
[328836176,1717859439561,-3265.694796,0.00028825,2]
[328836177,1717859439572,-307.05044098,0.00029,2]
[328836178,1717859439582,-1350.0,0.00029,2]
[328836179,1717859439593,-4935.2796816,0.00029,7]
[328836180,1717859439605,-64.7203184,0.00029,7]
[328836181,1717859439615,-714.03763505,0.00029048,2]
[328836182,1717859439625,-5000.0,0.0002905,2]
[328836183,1717859439636,-222.12265398,0.00029071,2]
[328836184,1717859439646,-171.13913011,0.00029089,2]
[328836185,1717859439656,-341.18131269,0.00029103,15]
[328836186,1717859439666,-359.6,0.00029123,2]
[328836187,1717859439676,-5000.0,0.00029127,2]
[328836188,1717859439686,-163.48925101,0.00029155,2]
[328836189,1717859439696,-669.61476,0.00029172,2]
[328836190,1717859439706,-1649.561551,0.00029172,2]
[328836191,1717859439716,-3265.694796,0.00029172,2]
[328836192,1717859439726,-9927.38389153,0.00029172,2]
[328836193,1717859439738,-1435.84426538,0.00029172,2]
[328836194,1717859439748,-341.18131265,0.00029192,15]
[328836195,1717859439758,-318.48025481,0.00029203,4]
[328836196,1717859439769,-341.18131265,0.0002928,15]
[328836197,1717859439780,-341.18131265,0.00029369,15]
[328836198,1717859439790,-161.84597815,0.00029399,2]
[328836199,1717859439801,-163.0,0.0002941,18]
[328836200,1717859439811,-160.07290368,0.00029427,2]
[328836201,1717859439821,-155.6831595,0.00029439,2]
[328836202,1717859439831,-341.18131265,0.00029457,15]
[328836203,1717859439841,-659.5783,0.00029487,2]
[328836204,1717859439852,-956.75488802,0.00029489,2]
[328836205,1717859439864,-43.24511198,0.00029489,2]
[328836206,1717859439875,-3327.60683346,0.00029498,2]
[328836207,1717859439885,-339.17922691,0.000295,2]
[328836208,1717859439896,-489.84882765,0.00029508,2]
[328836209,1717859439909,-4376.19117235,0.00029508,2]
[328836210,1717859439921,-341.18131265,0.00029546,15]
[328836211,1717859439932,-842.55620938,0.00029587,2]
[328836212,1717859439943,-484.81337382,0.00029587,2]
[328836213,1717859439954,-1118.30910831,0.00029587,2]
[328836214,1717859439965,-68.54882349,0.00029634,15]
[328836215,1717859439978,-272.63248916,0.00029634,15]
[328836216,1717859439989,-209.0,0.0002965,2]
[328836217,1717859440000,-266.69192808,0.00029682,2]
[328836218,1717859440052,-2942.17437192,0.00029682,2]
[328836219,1717859440063,-323.83242949,0.00029685,2]
[328836222,1717859442489,-676.16757051,0.00029685,2]
[328836223,1717859442498,-150.0,0.00029686,2]
[328836224,1717859442509,-381.8563,0.00029688,2]
[328836225,1717859442519,-1147.37056066,0.00029688,2]
[328836226,1717859442530,-1147.37056059,0.00029699,2]
[328836227,1717859442540,-1986.87003435,0.000297,2]
[328836228,1717859442550,-204.48397635,0.000297,2]
[328836229,1717859442560,-1147.37056059,0.00029709,2]
[328836230,1717859442570,-1986.87003435,0.00029718,2]
[328836231,1717859442579,-1147.37056059,0.0002972,2]
[328836232,1717859442589,-341.18131265,0.00029723,15]
[328836233,1717859442600,-150.0,0.00029726,2]
[328836234,1717859442609,-1147.37056059,0.00029731,2]
[328836235,1717859442619,-2100.0,0.00029732,2]
[328836236,1717859442629,-1986.87003435,0.00029736,2]
[328836237,1717859442638,-1135.14652424,0.00029742,2]
[328836253,1717859446507,-12.22403635,0.00029742,2]
[328836254,1717859446517,-437.29,0.00029743,2]
[328836255,1717859446528,-272.85436467,0.00029752,2]
[328836256,1717859446541,-874.51619592,0.00029752,2]
[328836257,1717859446551,-1986.87003435,0.00029755,2]
[328836258,1717859446561,-718.10846974,0.00029763,2]
[328836259,1717859446690,-128.38677155,0.00029763,2]
[328836260,1717859447049,-300.8753193,0.00029763,2]
[328836262,1717859447059,-209.0,0.0002977,15]
[328836263,1717859447069,-206.84,0.0002977,15]
[328836264,1717859447078,-1128.29959157,0.00029771,2]
[328836265,1717859447088,-1986.87003435,0.00029773,2]
[328836266,1717859447097,-169.95723609,0.00029778,2]
[328836267,1717859447107,-209.0,0.0002978,15]
[328836268,1717859447116,-206.5,0.0002978,15]
[328836269,1717859447125,-150.5,0.0002978,15]
[328836270,1717859447136,-8035.39495912,0.00029782,7]
[328836271,1717859447151,-1775.30130806,0.00029782,7]
[328836272,1717859447162,-285.22474783,0.00029782,7]
[328836274,1717859447584,-541.19808586,0.00029782,7]
[328836277,1717859447598,-60385.08518978,0.00029782,7]
[328836280,1717859447608,-1386.4022635,0.00029785,2]
[328836283,1717859447619,-8099.0100707,0.00029785,2]
[328836286,1717859447629,-4924.4053723,0.00029785,2]
[328836289,1717859447640,-98060.6422272,0.00029785,2]
[328836291,1717859447650,-46231.6233741,0.00029785,2]
[328836293,1717859447661,-253.9156537,0.00029785,2]
[328836294,1717859447671,-1403.4357772,0.00029788,2]
[328836295,1717859447682,-6638.626181,0.00029788,2]
[328836296,1717859447692,-4037.1680359,0.00029788,2]
[328836297,1717859447703,-12938.03786367,0.00029788,2]
[328836298,1717859447891,-0.22456357,0.00029788,2]
[328836299,1717859447903,-751.80430157,0.00029788,2]
[328836304,1717859448624,-66702.84580629,0.00029788,2]
[328836306,1717859448634,-37909.8294582,0.00029788,2]
[328836308,1717859448644,-29588.0355423,0.00029788,2]
[328836310,1717859448655,-21266.2416264,0.00029788,2]
[328836312,1717859448665,-12944.4477105,0.00029788,2]
[328836314,1717859448675,-253.9156537,0.00029788,2]
[328836316,1717859448685,-253.9156537,0.00029788,2]
[328836317,1717859448696,-253.9156537,0.00029788,2]
[328836318,1717859448706,-151.65,0.0002979,2]
[328836319,1717859448716,-209.0,0.0002979,15]
[328836320,1717859448725,-150.5,0.0002979,15]
[328836321,1717859448736,-150.5,0.0002979,15]
[328836322,1717859448746,-5178.2422913,0.0002979,2]
[328836323,1717859448756,-3149.9306995,0.0002979,2]
[328836324,1717859448765,-62725.182843,0.0002979,2]
[328836325,1717859448774,-151.65,0.0002979,2]
[328836326,1717859448785,-151.65,0.0002979,2]
[328836327,1717859448795,-1986.87003435,0.00029791,2]
[328836328,1717859448805,-634.56885852,0.00029798,2]
[328836329,1717859448815,-156.65937792,0.00029798,2]
[328836330,1717859448824,-162.52861424,0.00029798,2]
[328836331,1717859448834,-4814.59229454,0.00029798,2]
[328836332,1717859448900,-0.0130667,0.00029798,2]
[328836333,1717859448914,-269.06781082,0.00029798,2]
[328836334,1717859448926,-6773.65470244,0.00029798,2]
[328836335,1717859448936,-253.07506687,0.00029798,2]
[328836336,1717859448949,-1053.97007889,0.00029798,2]
[328836337,1717859448959,-333.98930856,0.00029798,2]
[328836338,1717859448970,-2335.29723679,0.00029798,2]
[328836339,1717859448981,-3063.88513928,0.00029798,2]
[328836340,1717859448991,-3384.77160162,0.00029798,2]
[328836341,1717859449002,-490.24581051,0.00029798,2]
[328836342,1717859449013,-217.27695731,0.00029798,2]
[328836343,1717859449025,-13724.02452965,0.00029798,5]
[328836344,1717859449037,-172.71594566,0.00029798,2]
[328836345,1717859449050,-442.73906268,0.00029798,2]
[328836346,1717859449062,-455.48968609,0.00029798,2]
[328836347,1717859449074,-216.91144525,0.00029798,2]
[328836348,1717859449085,-235.88944655,0.00029799,2]
[328836349,1717859449097,-6758.24924673,0.00029799,2]
[328836350,1717859449108,-208.87102398,0.00029799,2]
[328836351,1717859449120,-5893.09556016,0.00029799,2]
[328836352,1717859449131,-1553.28453815,0.00029799,2]
[328836353,1717859449143,-7689.52141926,0.00029799,2]
[328836354,1717859449158,-11971.23319294,0.00029799,2]
[328836355,1717859449169,-242.0,0.00029799,5]
[328836356,1717859449180,-8736.2658275,0.000298,13]
[328836357,1717859449191,-5234.8,0.000298,13]
[328836358,1717859449203,-34544.9187444,0.000298,13]
[328836368,1717859994524,151.0,0.00028,90]
[328836379,1717860441166,-185.99482265,0.00016665,2]
[328836380,1717860441195,-926.46130898,0.00016666,2]
[328836381,1717860441223,-156.04,0.00016667,2]
[328836382,1717860441251,-1348.57989397,0.00017029,2]
[328836390,1717860632234,-162.99818709,0.00016831,2]
[328836392,1717860632244,-806.45833828,0.00016928,2]
[328836393,1717860632256,-3319.65966172,0.00016928,2]
[328836395,1717860632266,-48.27121744,0.00016931,2]
[328836396,1717860632278,-1565.31339387,0.00016931,2]
[328836397,1717860632290,-419.72628869,0.00016931,2]
[328836398,1717860632301,-221.64661264,0.00017026,2]
[328836399,1717860632312,-1403.21772741,0.00017026,2]
[328836400,1717860632322,-797.0,0.00017027,2]
[328836401,1717860632331,-1046.90788991,0.00017029,2]
[328836402,1717860632342,-1042.51244556,0.00017029,2]
[328836403,1717860632351,-150.0,0.00017157,2]
[328836404,1717860632361,-150.0,0.00017157,2]
[328836405,1717860632371,-3064.8950057,0.00017158,2]
[328836406,1717860632381,-548.70135201,0.0001716,2]
[328836407,1717860632390,-218.23480804,0.0001725,2]
[328836408,1717860632403,-4755.13692639,0.0001725,2]
[328836409,1717860632413,-1727.35,0.0001725,2]
[328836410,1717860632422,-150.99,0.0001725,2]
[328836411,1717860632432,-150.99,0.0001725,2]